[Event "*** Titled Tuesday Blitz"]
[Site "Chess.com"]
[Date "2019.08.06"]
[Round "3"]
[White "BlackBoarder"]
[Black "Dhaydon19"]
[Result "1-0"]
[WhiteElo "2664"]
[BlackElo "2600"]
[TimeControl "180+2"]
[EndTime "13:36:21 PDT"]
[Termination "BlackBoarder won by resignation"]

1. e4 {[%clk 0:02:57.6]} 1... c6 {[%clk 0:03:01.7]} 2. Nf3 {[%clk 0:02:57.1]}
2... d5 {[%clk 0:03:02.6]} 3. Nc3 {[%clk 0:02:58.6]} 3... Bg4 {[%clk 0:03:03.3]}
4. h3 {[%clk 0:02:59.7]} 4... Bh5 {[%clk 0:03:03.1]} 5. d4 {[%clk 0:02:58]} 5...
e6 {[%clk 0:03:00.4]} 6. Bd3 {[%clk 0:02:57.7]} 6... Nf6 {[%clk 0:02:59.6]} 7.
O-O {[%clk 0:02:54.7]} 7... Be7 {[%clk 0:02:57.6]} 8. Be3 {[%clk 0:02:51.4]}
8... dxe4 {[%clk 0:02:58.2]} 9. Nxe4 {[%clk 0:02:52.2]} 9... Bg6 {[%clk
0:02:58]} 10. Nxf6+ {[%clk 0:02:45.3]} 10... Bxf6 {[%clk 0:02:58.2]} 11. Bxg6
{[%clk 0:02:46.5]} 11... hxg6 {[%clk 0:02:58.7]} 12. c4 {[%clk 0:02:44.5]} 12...
Nd7 {[%clk 0:02:56.8]} 13. Qb3 {[%clk 0:02:39.6]} 13... Qc7 {[%clk 0:02:48.8]}
14. Rac1 {[%clk 0:02:33.9]} 14... O-O {[%clk 0:02:49]} 15. Rfd1 {[%clk
0:02:27.4]} 15... Rfd8 {[%clk 0:02:48.6]} 16. Qa3 {[%clk 0:01:41.1]} 16... Nb6
{[%clk 0:02:42.9]} 17. Qa5 {[%clk 0:01:25.4]} 17... Rd7 {[%clk 0:02:31.9]} 18.
d5 {[%clk 0:01:12.9]} 18... exd5 {[%clk 0:02:31.4]} 19. cxd5 {[%clk 0:01:14]}
19... Rxd5 {[%clk 0:02:19]} 20. Rxd5 {[%clk 0:00:56.1]} 20... Nxd5 {[%clk
0:02:18.2]} 21. Qxd5 {[%clk 0:00:53.6]} 21... Bxb2 {[%clk 0:02:18.1]} 22. Rc2
{[%clk 0:00:48.5]} 22... Rd8 {[%clk 0:02:17.7]} 23. Bf4 {[%clk 0:00:24.4]} 23...
Qe7 {[%clk 0:02:13.2]} 24. Qb3 {[%clk 0:00:17.5]} 24... Bf6 {[%clk 0:02:04.2]}
25. Qe3 {[%clk 0:00:17]} 25... Qd7 {[%clk 0:02:01.4]} 26. Re2 {[%clk 0:00:14.5]}
26... b6 {[%clk 0:01:57.8]} 27. Kh2 {[%clk 0:00:15.1]} 27... c5 {[%clk
0:01:58.4]} 28. Be5 {[%clk 0:00:14]} 28... Re8 {[%clk 0:01:58.3]} 29. Qf4 {[%clk
0:00:08.1]} 29... Bd8 {[%clk 0:01:59.3]} 30. Re3 {[%clk 0:00:08.3]} 30... f6
{[%clk 0:01:59.1]} 31. Bc3 {[%clk 0:00:09.4]} 31... Bc7 {[%clk 0:01:56.3]} 32.
Rxe8+ {[%clk 0:00:10.4]} 32... Kf7 {[%clk 0:01:51.1]} 33. Re5 {[%clk 0:00:08.5]}
33... Kg8 {[%clk 0:01:48.5]} 34. g3 {[%clk 0:00:06.8]} 34... fxe5 {[%clk
0:01:49.2]} 35. Bxe5 {[%clk 0:00:08.2]} 35... Bd8 {[%clk 0:01:49.4]} 36. Qe4
{[%clk 0:00:08.3]} 36... Kf7 {[%clk 0:01:45]} 37. h4 {[%clk 0:00:07.9]} 37...
Qe6 {[%clk 0:01:44.4]} 38. Ng5+ {[%clk 0:00:08.2]} 38... Bxg5 {[%clk 0:01:45.6]}
39. hxg5 {[%clk 0:00:10.1]} 39... c4 {[%clk 0:01:46.9]} 40. Qb7+ {[%clk
0:00:10.4]} 40... Ke8 {[%clk 0:01:45.7]} 41. Qb8+ {[%clk 0:00:11.5]} 41... Kd7
{[%clk 0:01:44.7]} 42. Qc7+ {[%clk 0:00:10.3]} 42... Ke8 {[%clk 0:01:45.7]} 43.
Qb8+ {[%clk 0:00:10.6]} 43... Kd7 {[%clk 0:01:46.4]} 44. Qxa7+ {[%clk
0:00:12.1]} 44... Kc6 {[%clk 0:01:47.7]} 45. Qc7+ {[%clk 0:00:13.4]} 45... Kd5
{[%clk 0:01:48.2]} 46. Bxg7 {[%clk 0:00:13.6]} 46... Qf5 {[%clk 0:01:47.8]} 47.
Qf4 {[%clk 0:00:09.8]} 47... Qd3 {[%clk 0:01:47.5]} 48. Qe5+ {[%clk 0:00:10.3]}
48... Kc6 {[%clk 0:01:48.8]} 49. Qd4 {[%clk 0:00:10.3]} 49... Qe2 {[%clk
0:01:48.7]} 50. Be5 {[%clk 0:00:09.1]} 50... Kb5 {[%clk 0:01:48.4]} 51. Qb2+
{[%clk 0:00:08.9]} 51... Qxb2 {[%clk 0:01:48.3]} 52. Bxb2 {[%clk 0:00:10.8]}
52... Kb4 {[%clk 0:01:50.2]} 53. f4 {[%clk 0:00:11.9]} 53... c3 {[%clk
0:01:50.3]} 54. Bxc3+ {[%clk 0:00:13.3]} 54... Kxc3 {[%clk 0:01:52.2]} 55. f5
{[%clk 0:00:15.2]} 55... gxf5 {[%clk 0:01:52.6]} 56. g6 {[%clk 0:00:17.1]} 56...
f4 {[%clk 0:01:54.5]} 57. gxf4 {[%clk 0:00:18.5]} 1-0

[Event "*** Titled Tuesday Blitz"]
[Site "Chess.com"]
[Date "2019.08.06"]
[Round "3"]
[White "doons21"]
[Black "ChadBiryani"]
[Result "0-1"]
[WhiteElo "2598"]
[BlackElo "2385"]
[TimeControl "180+2"]
[EndTime "13:36:22 PDT"]
[Termination "ChadBiryani won by resignation"]

1. e4 {[%clk 0:03:01.9]} 1... c5 {[%clk 0:03:00.8]} 2. c3 {[%clk 0:03:02.8]}
2... d6 {[%clk 0:03:00.8]} 3. d4 {[%clk 0:03:03.7]} 3... cxd4 {[%clk 0:02:52.8]}
4. cxd4 {[%clk 0:03:05.6]} 4... g6 {[%clk 0:02:54.2]} 5. Nc3 {[%clk 0:03:05.1]}
5... Bg7 {[%clk 0:02:55.6]} 6. Nf3 {[%clk 0:03:02.5]} 6... Nf6 {[%clk
0:02:55.6]} 7. h3 {[%clk 0:03:01.3]} 7... O-O {[%clk 0:02:56.7]} 8. Be3 {[%clk
0:03:01.9]} 8... a6 {[%clk 0:02:57.6]} 9. a4 {[%clk 0:03:00.6]} 9... Nc6 {[%clk
0:02:57.4]} 10. Be2 {[%clk 0:03:00.9]} 10... Bd7 {[%clk 0:02:58.6]} 11. O-O
{[%clk 0:03:01.6]} 11... Rc8 {[%clk 0:02:59.1]} 12. d5 {[%clk 0:02:46]} 12...
Na5 {[%clk 0:02:53.8]} 13. Nd2 {[%clk 0:02:33.8]} 13... Ne8 {[%clk 0:02:17.3]}
14. Rc1 {[%clk 0:02:31.9]} 14... f5 {[%clk 0:01:45.9]} 15. Nf3 {[%clk
0:01:39.9]} 15... Nc4 {[%clk 0:01:37.5]} 16. Bd4 {[%clk 0:01:34.4]} 16... Ne5
{[%clk 0:01:09.7]} 17. Nxe5 {[%clk 0:01:08.9]} 17... dxe5 {[%clk 0:01:09.2]} 18.
Be3 {[%clk 0:01:01.4]} 18... f4 {[%clk 0:01:10.3]} 19. Bd2 {[%clk 0:01:01.2]}
19... Nd6 {[%clk 0:01:08.7]} 20. b3 {[%clk 0:00:58.6]} 20... Qb6 {[%clk
0:00:52.8]} 21. Bg4 {[%clk 0:00:24.8]} 21... Bxg4 {[%clk 0:00:47.8]} 22. Qxg4
{[%clk 0:00:26.7]} 22... Qxb3 {[%clk 0:00:42.1]} 23. Qe6+ {[%clk 0:00:28]} 23...
Rf7 {[%clk 0:00:43.3]} 24. Rb1 {[%clk 0:00:07.9]} 24... Qc2 {[%clk 0:00:21.8]}
25. Rfd1 {[%clk 0:00:09.2]} 25... b5 {[%clk 0:00:20.2]} 26. axb5 {[%clk
0:00:10]} 26... axb5 {[%clk 0:00:21.8]} 27. f3 {[%clk 0:00:10.1]} 27... Bf6
{[%clk 0:00:15.6]} 28. Nxb5 {[%clk 0:00:09.6]} 28... Nxb5 {[%clk 0:00:15.7]} 29.
Rbc1 {[%clk 0:00:10.7]} 29... Qa4 {[%clk 0:00:11.8]} 30. Rxc8+ {[%clk
0:00:11.9]} 30... Kg7 {[%clk 0:00:13.4]} 31. Rdc1 {[%clk 0:00:11.9]} 31... Nd4
{[%clk 0:00:14]} 32. Kh2 {[%clk 0:00:13.2]} 32... Nxe6 {[%clk 0:00:14.4]} 33.
dxe6 {[%clk 0:00:13.7]} 33... Rf8 {[%clk 0:00:15.7]} 34. Rxf8 {[%clk 0:00:14.4]}
34... Kxf8 {[%clk 0:00:17.6]} 35. g3 {[%clk 0:00:15.2]} 35... Qa2 {[%clk
0:00:17.7]} 36. Rd1 {[%clk 0:00:15.8]} 36... Qc2 {[%clk 0:00:18.5]} 0-1

[Event "*** Titled Tuesday Blitz"]
[Site "Chess.com"]
[Date "2019.08.06"]
[Round "3"]
[White "cancrushyou"]
[Black "CookiesAndIceCream"]
[Result "1-0"]
[WhiteElo "2499"]
[BlackElo "2345"]
[TimeControl "180+2"]
[EndTime "13:36:22 PDT"]
[Termination "cancrushyou won by resignation"]

1. Nf3 {[%clk 0:03:01.9]} 1... d5 {[%clk 0:03:00.9]} 2. g3 {[%clk 0:03:03]} 2...
c6 {[%clk 0:03:01.2]} 3. Bg2 {[%clk 0:03:02.5]} 3... Bg4 {[%clk 0:03:02.5]} 4.
O-O {[%clk 0:03:03.6]} 4... Nf6 {[%clk 0:03:02.4]} 5. d4 {[%clk 0:03:04.4]} 5...
Nbd7 {[%clk 0:03:03.2]} 6. c4 {[%clk 0:03:05.5]} 6... e6 {[%clk 0:03:03.9]} 7.
b3 {[%clk 0:03:06.8]} 7... Bd6 {[%clk 0:03:00.8]} 8. Bb2 {[%clk 0:03:07.9]} 8...
O-O {[%clk 0:02:59.2]} 9. Ne5 {[%clk 0:03:08.9]} 9... Bf5 {[%clk 0:02:49.7]} 10.
Nd2 {[%clk 0:03:07.7]} 10... a5 {[%clk 0:02:37.4]} 11. a3 {[%clk 0:03:03]} 11...
c5 {[%clk 0:02:11.8]} 12. Nxd7 {[%clk 0:02:56]} 12... Qxd7 {[%clk 0:01:39.3]}
13. cxd5 {[%clk 0:02:52.3]} 13... exd5 {[%clk 0:01:15.4]} 14. dxc5 {[%clk
0:02:51.7]} 14... Bxc5 {[%clk 0:01:15.2]} 15. Bxf6 {[%clk 0:02:53]} 15... gxf6
{[%clk 0:01:15.9]} 16. e4 {[%clk 0:02:01.4]} 16... dxe4 {[%clk 0:01:05.3]} 17.
Nxe4 {[%clk 0:02:00.3]} 17... Qxd1 {[%clk 0:00:45.9]} 18. Rfxd1 {[%clk
0:01:54.1]} 18... Bxe4 {[%clk 0:00:45.9]} 19. Bxe4 {[%clk 0:01:54.5]} 19... Rad8
{[%clk 0:00:46]} 20. Bxb7 {[%clk 0:01:44.7]} 20... Rxd1+ {[%clk 0:00:32.4]} 21.
Rxd1 {[%clk 0:01:46.6]} 21... Bxa3 {[%clk 0:00:31.3]} 22. Rd5 {[%clk 0:01:08.9]}
22... Bb4 {[%clk 0:00:25.3]} 23. Rd7 {[%clk 0:00:56.6]} 23... Re8 {[%clk
0:00:22.6]} 24. Bd5 {[%clk 0:00:56.4]} 24... Re7 {[%clk 0:00:21.8]} 25. Rd8+
{[%clk 0:00:57.7]} 25... Kg7 {[%clk 0:00:22.5]} 26. Bc4 {[%clk 0:00:58.5]} 26...
Bc5 {[%clk 0:00:18.6]} 27. Kg2 {[%clk 0:00:53.6]} 27... Bb4 {[%clk 0:00:16.1]}
28. Kf3 {[%clk 0:00:52.6]} 28... Re5 {[%clk 0:00:17.2]} 29. h4 {[%clk
0:00:48.5]} 29... Bc5 {[%clk 0:00:17.6]} 30. Rd7 {[%clk 0:00:48.3]} 30... Re7
{[%clk 0:00:18.2]} 31. Rd5 {[%clk 0:00:49.4]} 31... Re5 {[%clk 0:00:17.7]} 32.
Rd8 {[%clk 0:00:49.7]} 32... Rf5+ {[%clk 0:00:18]} 33. Kg4 {[%clk 0:00:45.4]}
33... Rxf2 {[%clk 0:00:14.8]} 34. Rd7 {[%clk 0:00:46.6]} 34... f5+ {[%clk
0:00:11.8]} 35. Kh5 {[%clk 0:00:42]} 35... Rf3 {[%clk 0:00:08.9]} 36. Rxf7+
{[%clk 0:00:42.6]} 36... Kh8 {[%clk 0:00:09.5]} 37. Rc7 {[%clk 0:00:43.5]} 37...
Be3 {[%clk 0:00:10]} 38. Rc8+ {[%clk 0:00:41.7]} 38... Kg7 {[%clk 0:00:10.4]}
39. Bd5 {[%clk 0:00:42.6]} 39... Rxg3 {[%clk 0:00:10.3]} 40. Rg8+ {[%clk
0:00:42.7]} 40... Kf6 {[%clk 0:00:08.8]} 41. Rxg3 {[%clk 0:00:44.2]} 1-0

[Event "*** Titled Tuesday Blitz"]
[Site "Chess.com"]
[Date "2019.08.06"]
[Round "3"]
[White "Roachelley"]
[Black "Mostii"]
[Result "1/2-1/2"]
[WhiteElo "2256"]
[BlackElo "2367"]
[TimeControl "180+2"]
[EndTime "13:36:24 PDT"]
[Termination "Game drawn by repetition"]

1. d4 {[%clk 0:03:01.9]} 1... e6 {[%clk 0:02:59.6]} 2. c4 {[%clk 0:03:02.5]}
2... b6 {[%clk 0:02:57.6]} 3. Nc3 {[%clk 0:02:56.2]} 3... Bb7 {[%clk 0:02:58.5]}
4. a3 {[%clk 0:02:56.6]} 4... Nf6 {[%clk 0:02:59]} 5. Qc2 {[%clk 0:02:55.8]}
5... d5 {[%clk 0:02:59.6]} 6. cxd5 {[%clk 0:02:56.4]} 6... Nxd5 {[%clk
0:03:01.5]} 7. e4 {[%clk 0:02:55.2]} 7... Nxc3 {[%clk 0:03:02.6]} 8. bxc3 {[%clk
0:02:57.1]} 8... Nd7 {[%clk 0:03:03.5]} 9. Nf3 {[%clk 0:02:53.7]} 9... c5 {[%clk
0:03:04.6]} 10. Bg5 {[%clk 0:02:43.3]} 10... Be7 {[%clk 0:03:04.9]} 11. Bxe7
{[%clk 0:02:43.8]} 11... Qxe7 {[%clk 0:03:06.8]} 12. Bd3 {[%clk 0:02:43.6]}
12... cxd4 {[%clk 0:03:08]} 13. Nxd4 {[%clk 0:02:42.9]} 13... O-O {[%clk
0:03:07.2]} 14. O-O {[%clk 0:02:42.6]} 14... Nc5 {[%clk 0:03:08]} 15. Rae1
{[%clk 0:02:35.4]} 15... Rac8 {[%clk 0:03:08.4]} 16. e5 {[%clk 0:02:32.3]} 16...
Nxd3 {[%clk 0:03:09.2]} 17. Qxd3 {[%clk 0:02:33.4]} 17... Qxa3 {[%clk
0:03:10.7]} 18. Nb5 {[%clk 0:02:33.5]} 18... Ba6 {[%clk 0:03:02.5]} 19. Ra1
{[%clk 0:02:30]} 19... Bxb5 {[%clk 0:03:00.1]} 20. Qxb5 {[%clk 0:02:31.2]} 20...
Qxc3 {[%clk 0:03:00.2]} 21. Rxa7 {[%clk 0:02:31.7]} 21... Rc5 {[%clk 0:02:44.5]}
22. Qxb6 {[%clk 0:02:30.9]} 22... Qxe5 {[%clk 0:02:46.4]} 23. h3 {[%clk
0:02:22.6]} 23... g6 {[%clk 0:02:47]} 24. Rd1 {[%clk 0:02:21.7]} 24... Kg7
{[%clk 0:02:37.7]} 25. Qb7 {[%clk 0:02:04.5]} 25... Qf6 {[%clk 0:02:29.9]} 26.
Qe4 {[%clk 0:01:59.7]} 26... Rb8 {[%clk 0:02:16.9]} 27. Rdd7 {[%clk 0:01:45.7]}
27... Rf8 {[%clk 0:01:22.9]} 28. Qe3 {[%clk 0:01:38]} 28... Re5 {[%clk
0:01:22.6]} 29. Qd2 {[%clk 0:01:28.6]} 29... Rf5 {[%clk 0:01:23.4]} 30. Qe3
{[%clk 0:01:15.8]} 30... h5 {[%clk 0:01:23.5]} 31. Re7 {[%clk 0:01:14.4]} 31...
Re5 {[%clk 0:01:06.7]} 32. Qd2 {[%clk 0:01:03.3]} 32... Rd5 {[%clk 0:01:04.4]}
33. Qe2 {[%clk 0:00:59.8]} 33... e5 {[%clk 0:00:50.2]} 34. Qe4 {[%clk
0:00:38.6]} 34... Rd1+ {[%clk 0:00:47.8]} 35. Kh2 {[%clk 0:00:39.4]} 35... Qxf2
{[%clk 0:00:38.8]} 36. Qxe5+ {[%clk 0:00:40.3]} 36... Qf6 {[%clk 0:00:40.2]} 37.
Qxf6+ {[%clk 0:00:40.5]} 37... Kxf6 {[%clk 0:00:42.1]} 38. Re3 {[%clk
0:00:41.5]} 38... Rd5 {[%clk 0:00:41.2]} 39. Rf3+ {[%clk 0:00:42.2]} 39... Kg7
{[%clk 0:00:38.8]} 40. Rb7 {[%clk 0:00:43.2]} 40... Re5 {[%clk 0:00:39.7]} 41.
Rc7 {[%clk 0:00:44]} 41... g5 {[%clk 0:00:39.2]} 42. Rd7 {[%clk 0:00:43.8]}
42... Kg6 {[%clk 0:00:39.8]} 43. Rd6+ {[%clk 0:00:44.8]} 43... f6 {[%clk
0:00:40.6]} 44. Kg3 {[%clk 0:00:45.2]} 44... Re4 {[%clk 0:00:41.8]} 45. Rc6
{[%clk 0:00:45.5]} 45... Ra4 {[%clk 0:00:42.8]} 46. Rb6 {[%clk 0:00:46.3]} 46...
Ra7 {[%clk 0:00:44.2]} 47. Rc6 {[%clk 0:00:47.5]} 47... Raf7 {[%clk 0:00:45.7]}
48. Rb6 {[%clk 0:00:48.8]} 48... Ra8 {[%clk 0:00:46.7]} 49. Rc6 {[%clk
0:00:49.5]} 49... Ra5 {[%clk 0:00:48]} 50. Rb6 {[%clk 0:00:49.3]} 50... Rc5
{[%clk 0:00:49]} 51. Rd6 {[%clk 0:00:50.1]} 51... Re5 {[%clk 0:00:49.3]} 52. Rc6
{[%clk 0:00:50.4]} 52... Re4 {[%clk 0:00:50.5]} 53. Rb6 {[%clk 0:00:51.3]} 53...
Rf8 {[%clk 0:00:51.8]} 54. Rc6 {[%clk 0:00:52.4]} 54... Rf7 {[%clk 0:00:53]} 55.
Rb6 {[%clk 0:00:53.9]} 55... Kg7 {[%clk 0:00:54.3]} 56. Rf5 {[%clk 0:00:53.7]}
56... Kg6 {[%clk 0:00:54.2]} 57. Rf3 {[%clk 0:00:53.8]} 1/2-1/2

[Event "*** Titled Tuesday Blitz"]
[Site "Chess.com"]
[Date "2019.08.06"]
[Round "3"]
[White "hamelekh"]
[Black "edgarrodrigues"]
[Result "1-0"]
[WhiteElo "2640"]
[BlackElo "2428"]
[TimeControl "180+2"]
[EndTime "13:36:24 PDT"]
[Termination "hamelekh won by resignation"]

1. d4 {[%clk 0:03:01.9]} 1... Nf6 {[%clk 0:03:00.4]} 2. Nc3 {[%clk 0:03:00.9]}
2... d5 {[%clk 0:03:00.7]} 3. Bf4 {[%clk 0:03:01.5]} 3... e6 {[%clk 0:02:52.7]}
4. Nb5 {[%clk 0:03:02.4]} 4... Na6 {[%clk 0:02:52.7]} 5. e3 {[%clk 0:03:03.2]}
5... Be7 {[%clk 0:02:50.7]} 6. c4 {[%clk 0:03:04.1]} 6... O-O {[%clk 0:02:49.3]}
7. Nf3 {[%clk 0:03:04.9]} 7... Ne4 {[%clk 0:02:39.8]} 8. Bd3 {[%clk 0:03:04.3]}
8... Bb4+ {[%clk 0:02:38.7]} 9. Ke2 {[%clk 0:03:04.8]} 9... b6 {[%clk
0:02:34.8]} 10. a3 {[%clk 0:03:03.7]} 10... Be7 {[%clk 0:02:33.9]} 11. cxd5
{[%clk 0:03:04.4]} 11... exd5 {[%clk 0:02:33.6]} 12. Qc2 {[%clk 0:03:04.4]}
12... c5 {[%clk 0:02:20.2]} 13. Nc3 {[%clk 0:02:37.3]} 13... Nxc3+ {[%clk
0:02:11.4]} 14. Qxc3 {[%clk 0:02:32]} 14... Bb7 {[%clk 0:01:52.3]} 15. Rhd1
{[%clk 0:02:27.8]} 15... Qd7 {[%clk 0:01:39.3]} 16. Qc2 {[%clk 0:02:19.7]} 16...
g6 {[%clk 0:01:37.4]} 17. Ne5 {[%clk 0:02:20.4]} 17... Qe6 {[%clk 0:01:34.7]}
18. Qa4 {[%clk 0:02:18.6]} 18... c4 {[%clk 0:01:22.2]} 19. Bb1 {[%clk
0:02:19.1]} 19... f6 {[%clk 0:01:07]} 20. Nf3 {[%clk 0:02:14.8]} 20... Nb8
{[%clk 0:00:51.4]} 21. Kf1 {[%clk 0:02:12]} 21... Nd7 {[%clk 0:00:36.1]} 22. Qc2
{[%clk 0:02:09.4]} 22... Rac8 {[%clk 0:00:35.7]} 23. Qe2 {[%clk 0:01:54.2]}
23... Rfe8 {[%clk 0:00:34.6]} 24. Bc2 {[%clk 0:01:54.1]} 24... Bf8 {[%clk
0:00:30.6]} 25. Nd2 {[%clk 0:01:53.7]} 25... b5 {[%clk 0:00:29.2]} 26. b3 {[%clk
0:01:46.1]} 26... Nb6 {[%clk 0:00:24.8]} 27. Nb1 {[%clk 0:01:46.3]} 27... cxb3
{[%clk 0:00:22.3]} 28. Bxb3 {[%clk 0:01:46.3]} 28... Nc4 {[%clk 0:00:22.9]} 29.
a4 {[%clk 0:01:45.6]} 29... Bc6 {[%clk 0:00:18.3]} 30. Kg1 {[%clk 0:01:40.1]}
30... bxa4 {[%clk 0:00:17.2]} 31. Bxa4 {[%clk 0:01:40.8]} 31... a6 {[%clk
0:00:17.1]} 32. Bxc6 {[%clk 0:01:39.2]} 32... Rxc6 {[%clk 0:00:18.1]} 33. Nd2
{[%clk 0:01:39]} 33... g5 {[%clk 0:00:18.7]} 34. Bg3 {[%clk 0:01:39.7]} 34...
Rec8 {[%clk 0:00:19.4]} 35. Nxc4 {[%clk 0:01:36.1]} 35... Rxc4 {[%clk
0:00:21.1]} 36. Qa2 {[%clk 0:01:36.5]} 36... Qf5 {[%clk 0:00:20.3]} 37. Qxa6
{[%clk 0:01:34.2]} 37... h5 {[%clk 0:00:20.9]} 38. h3 {[%clk 0:01:32.1]} 38...
h4 {[%clk 0:00:21.2]} 39. Bh2 {[%clk 0:01:33.5]} 39... Rc2 {[%clk 0:00:22.4]}
40. Rf1 {[%clk 0:01:34.8]} 40... Bb4 {[%clk 0:00:21.6]} 41. Qb7 {[%clk
0:01:27.2]} 41... Be1 {[%clk 0:00:20.6]} 42. Ra7 {[%clk 0:01:26.1]} 42... Bxf2+
{[%clk 0:00:20.9]} 43. Kh1 {[%clk 0:01:26.9]} 43... Qg6 {[%clk 0:00:21.5]} 44.
Rxf2 {[%clk 0:01:22.4]} 44... Rc1+ {[%clk 0:00:15.8]} 45. Bg1 {[%clk 0:01:23.3]}
1-0

[Event "*** Titled Tuesday Blitz"]
[Site "Chess.com"]
[Date "2019.08.06"]
[Round "3"]
[White "JMatias"]
[Black "Bathory44"]
[Result "0-1"]
[WhiteElo "2455"]
[BlackElo "2582"]
[TimeControl "180+2"]
[EndTime "13:36:26 PDT"]
[Termination "Bathory44 won by checkmate"]

1. c4 {[%clk 0:03:00.1]} 1... b6 {[%clk 0:02:54.9]} 2. Nc3 {[%clk 0:02:58.2]}
2... Bb7 {[%clk 0:02:55.4]} 3. e4 {[%clk 0:02:58.2]} 3... e5 {[%clk 0:02:56.5]}
4. Nge2 {[%clk 0:02:52.5]} 4... Nc6 {[%clk 0:02:57.3]} 5. g3 {[%clk 0:02:52.9]}
5... h5 {[%clk 0:02:57.1]} 6. h3 {[%clk 0:02:51]} 6... h4 {[%clk 0:02:55.6]} 7.
g4 {[%clk 0:02:51.8]} 7... Bc5 {[%clk 0:02:56.7]} 8. Bg2 {[%clk 0:02:50.8]} 8...
Nge7 {[%clk 0:02:58.1]} 9. O-O {[%clk 0:02:50.6]} 9... Ng6 {[%clk 0:02:59]} 10.
d3 {[%clk 0:02:50.1]} 10... Nd4 {[%clk 0:02:48.4]} 11. a3 {[%clk 0:02:45.4]}
11... a5 {[%clk 0:02:18.4]} 12. Rb1 {[%clk 0:02:42.1]} 12... Qf6 {[%clk
0:02:12.2]} 13. b4 {[%clk 0:02:33.7]} 13... axb4 {[%clk 0:02:13.3]} 14. axb4
{[%clk 0:02:35.5]} 14... Bd6 {[%clk 0:01:09.8]} 15. Nxd4 {[%clk 0:02:28.7]}
15... exd4 {[%clk 0:01:10.4]} 16. Nb5 {[%clk 0:02:29.7]} 16... Bf4 {[%clk
0:01:09.1]} 17. Bxf4 {[%clk 0:02:03.3]} 17... Qxf4 {[%clk 0:01:08.6]} 18. Qc1
{[%clk 0:02:04.6]} 18... O-O {[%clk 0:00:39.4]} 19. Nxd4 {[%clk 0:01:56.8]}
19... Ra2 {[%clk 0:00:37.1]} 20. Nf5 {[%clk 0:01:47]} 20... Rfa8 {[%clk
0:00:34.4]} 21. Qc3 {[%clk 0:01:37]} 21... Ne5 {[%clk 0:00:31.3]} 22. Rb2 {[%clk
0:01:25.2]} 22... R8a3 {[%clk 0:00:31.7]} 23. Qc2 {[%clk 0:01:20.9]} 23... Rxb2
{[%clk 0:00:30.3]} 24. Qxb2 {[%clk 0:01:22.2]} 24... Rxd3 {[%clk 0:00:31.3]} 25.
Re1 {[%clk 0:00:53.6]} 25... Nf3+ {[%clk 0:00:20]} 26. Bxf3 {[%clk 0:00:52.9]}
26... f6 {[%clk 0:00:21.3]} 27. Bg2 {[%clk 0:00:45.8]} 27... Rd2 {[%clk
0:00:22.3]} 28. Qxd2 {[%clk 0:00:22.7]} 28... Qxd2 {[%clk 0:00:23.1]} 29. Ra1
{[%clk 0:00:24.6]} 29... Qxb4 {[%clk 0:00:21.3]} 30. Ra7 {[%clk 0:00:25.4]}
30... Bc6 {[%clk 0:00:22.4]} 31. Rxc7 {[%clk 0:00:24.5]} 31... Qxc4 {[%clk
0:00:23.2]} 32. Nxh4 {[%clk 0:00:20.4]} 32... Qc1+ {[%clk 0:00:24.1]} 33. Bf1
{[%clk 0:00:21]} 33... Qf4 {[%clk 0:00:20.8]} 34. Rc8+ {[%clk 0:00:20.7]} 34...
Kh7 {[%clk 0:00:22.3]} 35. Nf5 {[%clk 0:00:21.8]} 35... Qxe4 {[%clk 0:00:22.9]}
36. Ng3 {[%clk 0:00:21.7]} 36... Qf3 {[%clk 0:00:22.8]} 37. Re8 {[%clk
0:00:19.2]} 37... b5 {[%clk 0:00:23.8]} 38. Re3 {[%clk 0:00:20.4]} 38... Qd5
{[%clk 0:00:24.1]} 39. Bd3+ {[%clk 0:00:21.8]} 39... g6 {[%clk 0:00:22.2]} 40.
h4 {[%clk 0:00:19.5]} 40... Qg2# {[%clk 0:00:22.4]} 0-1

[Event "*** Titled Tuesday Blitz"]
[Site "Chess.com"]
[Date "2019.08.06"]
[Round "3"]
[White "BoboHead"]
[Black "esteban062000"]
[Result "1-0"]
[WhiteElo "2153"]
[BlackElo "2137"]
[TimeControl "180+2"]
[EndTime "13:36:26 PDT"]
[Termination "BoboHead won by resignation"]

1. e4 {[%clk 0:03:01.9]} 1... c5 {[%clk 0:03:00.8]} 2. Nf3 {[%clk 0:03:01.4]}
2... g6 {[%clk 0:03:01.6]} 3. c3 {[%clk 0:03:01.8]} 3... Bg7 {[%clk 0:02:59.9]}
4. d4 {[%clk 0:03:03]} 4... cxd4 {[%clk 0:03:01]} 5. cxd4 {[%clk 0:03:04.9]}
5... d5 {[%clk 0:03:02]} 6. e5 {[%clk 0:03:05.3]} 6... Bg4 {[%clk 0:03:02.5]} 7.
Nc3 {[%clk 0:03:04.8]} 7... e6 {[%clk 0:03:00.2]} 8. Be2 {[%clk 0:02:33.7]} 8...
Ne7 {[%clk 0:02:59.7]} 9. Be3 {[%clk 0:02:29.6]} 9... O-O {[%clk 0:02:47.4]} 10.
h3 {[%clk 0:02:25.1]} 10... Bxf3 {[%clk 0:02:35.7]} 11. Bxf3 {[%clk 0:02:27]}
11... Nbc6 {[%clk 0:02:35.5]} 12. Qd2 {[%clk 0:02:26.4]} 12... Nf5 {[%clk
0:02:34.5]} 13. O-O {[%clk 0:02:25.4]} 13... f6 {[%clk 0:02:13.1]} 14. exf6
{[%clk 0:01:50.1]} 14... Bxf6 {[%clk 0:02:12]} 15. Ne2 {[%clk 0:01:50.2]} 15...
Na5 {[%clk 0:02:01.8]} 16. b3 {[%clk 0:01:47.8]} 16... Rc8 {[%clk 0:01:44.3]}
17. Nf4 {[%clk 0:01:32.6]} 17... Re8 {[%clk 0:01:43.8]} 18. Bg4 {[%clk
0:01:32.9]} 18... Nc6 {[%clk 0:01:40.6]} 19. Bxf5 {[%clk 0:01:15.6]} 19... exf5
{[%clk 0:01:36.7]} 20. Rac1 {[%clk 0:01:04.4]} 20... Re4 {[%clk 0:01:30.3]} 21.
Rc5 {[%clk 0:00:54.7]} 21... Ne7 {[%clk 0:01:02.4]} 22. f3 {[%clk 0:00:37.1]}
22... Rxc5 {[%clk 0:00:29.1]} 23. dxc5 {[%clk 0:00:34.7]} 23... Rxe3 {[%clk
0:00:20.7]} 24. Qxe3 {[%clk 0:00:35.1]} 24... Nc6 {[%clk 0:00:19.4]} 25. Qe6+
{[%clk 0:00:34.4]} 25... Kg7 {[%clk 0:00:20.1]} 26. Nxd5 {[%clk 0:00:35.5]}
26... Bd4+ {[%clk 0:00:20.2]} 27. Kh1 {[%clk 0:00:36.8]} 27... Bxc5 {[%clk
0:00:20.3]} 28. Re1 {[%clk 0:00:33.9]} 28... Qd6 {[%clk 0:00:20.6]} 29. Qxd6
{[%clk 0:00:24.8]} 29... Bxd6 {[%clk 0:00:22.5]} 30. Re6 {[%clk 0:00:25.7]}
30... Bf8 {[%clk 0:00:21.6]} 31. Re8 {[%clk 0:00:22.1]} 31... Kf7 {[%clk
0:00:22.5]} 32. Ra8 {[%clk 0:00:22.8]} 32... h6 {[%clk 0:00:22.3]} 33. a4 {[%clk
0:00:18.9]} 33... b6 {[%clk 0:00:23.3]} 34. b4 {[%clk 0:00:18.9]} 34... Ke6
{[%clk 0:00:23.1]} 35. b5 {[%clk 0:00:19.1]} 35... Nd4 {[%clk 0:00:17.7]} 36.
Nf4+ {[%clk 0:00:17.3]} 36... Kf7 {[%clk 0:00:18.2]} 37. Rxa7+ {[%clk
0:00:18.5]} 37... Be7 {[%clk 0:00:19.2]} 38. Nd5 {[%clk 0:00:19.6]} 38... Ke6
{[%clk 0:00:18.2]} 39. Nxe7 {[%clk 0:00:20]} 39... Nb3 {[%clk 0:00:18.7]} 40.
Nc6 {[%clk 0:00:20.7]} 40... Nc5 {[%clk 0:00:19.4]} 41. a5 {[%clk 0:00:21.4]}
41... bxa5 {[%clk 0:00:20.4]} 42. b6 {[%clk 0:00:22.6]} 42... a4 {[%clk
0:00:21.8]} 43. b7 {[%clk 0:00:23.9]} 43... Nxb7 {[%clk 0:00:23.5]} 44. Rxb7
{[%clk 0:00:25.5]} 44... a3 {[%clk 0:00:25.4]} 45. Ra7 {[%clk 0:00:27]} 1-0